fUST/lending_fUST_20240221
["ID","MTS","AMOUNT","RATE_DAILY","PERIOD"]
[314643073,1708497032575,-500.0,0.00019696,2]
[314643074,1708497032584,-500.0,0.00019696,2]
[314643076,1708497032595,-500.0,0.00019696,2]
[314643077,1708497032605,-500.0,0.00019696,2]
[314643078,1708497032614,-500.0,0.00019696,2]
[314643080,1708497032623,-500.0,0.00019696,2]
[314643082,1708497032632,-415.96199715,0.00019696,2]
[314643084,1708497032642,-247.76835069,0.00019696,2]
[314643276,1708497037931,-1167.61,0.00019693,2]
[314643278,1708497037941,-500.0,0.00019694,2]
[314643280,1708497037951,-554.45164931,0.00019696,2]
[314643282,1708497037960,-500.0,0.00019696,2]
[314643284,1708497037969,-500.0,0.00019696,2]
[314643286,1708497037979,-500.0,0.00019696,2]
[314643287,1708497037988,-500.0,0.00019696,2]
[314643290,1708497037998,-776.44,0.00019696,2]
[314643293,1708497038007,-500.0,0.00019696,2]
[314643296,1708497038017,-1028.41,0.00019696,2]
[314643300,1708497038027,-500.40141674,0.00019696,2]
[314643301,1708497038036,-2386.98,0.00019696,2]
[314643303,1708497038045,-541.40990493,0.00019696,2]
[314643305,1708497038055,-500.0,0.00019696,2]
[314643307,1708497038065,-500.0,0.00019696,2]
[314643309,1708497038075,-500.0,0.00019696,2]
[314643311,1708497038084,-500.0,0.00019696,2]
[314643313,1708497038093,-3190.18,0.00019696,2]
[314643315,1708497038103,-2848.67,0.00019696,2]
[314643317,1708497038113,-500.0,0.00019696,2]
[314643319,1708497038122,-3935.73,0.00019696,2]
[314643321,1708497038131,-500.0,0.00019696,2]
[314643323,1708497038140,-500.0,0.00019696,2]
[314643326,1708497038150,-500.0,0.00019696,2]
[314643327,1708497038159,-500.0,0.00019696,2]
[314643329,1708497038169,-500.0,0.00019696,2]
[314643332,1708497038178,-742.57,0.00019696,2]
[314643334,1708497038187,-500.0,0.00019696,2]
[314643336,1708497038197,-500.0,0.00019696,2]
[314643338,1708497038206,-500.0,0.00019696,2]
[314643340,1708497038215,-545.63,0.00019696,2]
[314643341,1708497038224,-500.0,0.00019696,2]
[314643344,1708497038234,-500.0,0.00019696,2]
[314643345,1708497038242,-500.0,0.00019696,2]
[314643347,1708497038260,-500.0,0.00019696,2]
[314643348,1708497038272,-500.0,0.00019696,2]
[314643349,1708497038281,-500.0,0.00019696,2]
[314643350,1708497038291,-500.0,0.00019696,2]
[314643351,1708497038300,-648.5,0.00019696,2]
[314643352,1708497038309,-500.0,0.00019696,2]
[314643353,1708497038319,-216.84865285,0.00019696,2]
[314643354,1708497038329,-500.0,0.00019697,2]
[314643355,1708497038338,-1135.91,0.00019697,2]
[314643356,1708497038347,-521.26,0.00019697,2]
[314643357,1708497038358,-500.96824877,0.00019697,2]
[314643358,1708497038367,-500.0,0.00019697,2]
[314643359,1708497038377,-599.80388928,0.00019697,2]
[314643360,1708497038386,-512.87920681,0.00019697,2]
[314643361,1708497038395,-500.0,0.00019697,2]
[314643362,1708497038405,-500.0,0.00019697,2]
[314643364,1708497038415,-500.0,0.00019697,2]
[314643365,1708497038424,-1160.2,0.00019697,2]
[314643367,1708497038434,-500.0,0.00019697,2]
[314643369,1708497038445,-529.06,0.00019697,2]
[314643372,1708497038455,-500.0,0.00019697,2]
[314643374,1708497038465,-500.0,0.00019697,2]
[314643376,1708497038475,-500.0,0.00019697,2]
[314643378,1708497038485,-261.60268192,0.00019697,2]
[314643380,1708497038493,-2285.75,0.00019697,2]
[314643382,1708497038503,-500.0,0.00019697,2]
[314643384,1708497038513,-500.0,0.00019697,2]
[314643386,1708497038525,-500.0,0.00019697,2]
[314643388,1708497038535,-500.0,0.00019697,2]
[314643390,1708497038544,-500.0,0.00019697,2]
[314643392,1708497038553,-500.0,0.00019697,2]
[314643394,1708497038563,-500.0,0.00019697,2]
[314643396,1708497038572,-500.0,0.00019697,2]
[314643398,1708497038582,-500.0,0.00019697,2]
[314643400,1708497038592,-500.0,0.00019697,2]
[314643402,1708497038607,-750.79,0.00019697,2]
[314643404,1708497038617,-500.0,0.00019697,2]
[314643406,1708497038627,-500.0,0.00019697,2]
[314643408,1708497038636,-500.0,0.00019697,2]
[314643410,1708497038646,-500.0,0.00019697,2]
[314643413,1708497038656,-151.0,0.00019697,2]
[314643415,1708497038665,-446.72914921,0.00019697,2]
[314643417,1708497038674,-500.0,0.00019697,2]
[314643419,1708497038684,-500.0,0.00019697,2]
[314643420,1708497038694,-1202.11,0.00019697,2]
[314643422,1708497038704,-500.37195292,0.00019697,2]
[314643424,1708497038713,-500.0,0.00019697,2]
[314643427,1708497038724,-2589.56,0.00019697,2]
[314643428,1708497038734,-1476.12,0.00019697,2]
[314643431,1708497038744,-564.67736675,0.00019697,2]
[314643433,1708497038753,-500.0,0.00019697,2]
[314643435,1708497038763,-643.46,0.00019697,2]
[314643437,1708497038773,-500.0,0.00019697,2]
[314643439,1708497038782,-500.0,0.00019697,2]
[314643440,1708497038791,-628.59224466,0.00019697,2]
[314643443,1708497038801,-500.0,0.00019697,2]
[314643445,1708497038810,-1000.0,0.00019697,2]
[314643447,1708497038820,-500.0,0.00019697,2]
[314643449,1708497038830,-500.0,0.00019697,2]
[314643451,1708497038840,-509.78492673,0.00019697,2]
[314643453,1708497038850,-500.0,0.00019697,2]
[314643455,1708497038860,-500.0,0.00019697,2]
[314643457,1708497038869,-500.0,0.00019697,2]
[314643459,1708497038879,-500.0,0.00019697,2]
[314643461,1708497038890,-500.0,0.00019697,2]
[314643463,1708497038899,-583.13240206,0.00019697,2]
[314643465,1708497038909,-500.0,0.00019697,2]
[314643467,1708497038919,-500.64240914,0.00019697,2]
[314643469,1708497038929,-500.0,0.00019697,2]
[314643471,1708497038940,-560.29,0.00019697,2]
[314643473,1708497038949,-500.0,0.00019697,2]
[314643475,1708497038959,-500.0,0.00019697,2]
[314643477,1708497038968,-187.60310888,0.00019697,2]
[314643479,1708497038978,-500.0,0.00019697,2]
[314643481,1708497038988,-500.0,0.00019697,2]
[314643483,1708497038997,-500.0,0.00019697,2]
[314643485,1708497039006,-500.0,0.00019697,2]
[314643487,1708497039015,-600.41345026,0.00019697,2]
[314643489,1708497039024,-500.37710201,0.00019697,2]
[314643491,1708497039034,-497.96270916,0.00019697,2]
[314643493,1708497039043,-500.28548922,0.00019697,2]
[314643495,1708497039053,-500.0,0.00019697,2]
[314643497,1708497039062,-500.20516533,0.00019697,2]
[314643499,1708497039071,-616.59730601,0.00019697,2]
[314643501,1708497039080,-405.94129812,0.00019697,2]
[314643503,1708497039091,-431.08821776,0.00019697,2]
[314643505,1708497039102,-500.0,0.00019697,2]
[314643507,1708497039113,-561.58798467,0.00019697,2]
[314643509,1708497039125,-2780.67,0.00019697,2]
[314643511,1708497039135,-166.06107794,0.00019697,2]
[314643513,1708497039148,-1153.34,0.00019697,2]
[314643516,1708497039157,-500.0,0.00019697,2]
[314643518,1708497039167,-633.89,0.00019697,2]
[314643519,1708497039176,-500.0,0.00019697,2]
[314643522,1708497039185,-13345.93,0.00019697,2]
[314643524,1708497039195,-500.0,0.00019697,2]
[314643525,1708497039205,-500.0,0.00019697,2]
[314643528,1708497039215,-20022.51,0.00019697,2]
[314643530,1708497039224,-502.84,0.00019697,2]
[314643532,1708497039234,-500.0,0.00019697,2]
[314643534,1708497039243,-5655.98,0.00019697,2]
[314643536,1708497039253,-1011.34,0.00019697,2]
[314643538,1708497039261,-500.0,0.00019697,2]
[314643540,1708497039271,-1653.1,0.00019697,2]
[314643542,1708497039280,-500.0,0.00019697,2]
[314643544,1708497039290,-260.64937657,0.00019697,2]
[314643545,1708497039299,-159.30524834,0.00019697,2]
[314643548,1708497039310,-500.0,0.00019697,2]
[314643549,1708497039319,-500.0,0.00019697,2]
[314643550,1708497039328,-500.0,0.00019697,2]
[314643551,1708497039337,-500.08305715,0.00019697,2]
[314643552,1708497039347,-500.1772025,0.00019697,2]
[314643553,1708497039358,-500.0,0.00019697,2]
[314643554,1708497039367,-500.0,0.00019697,2]
[314643555,1708497039376,-500.0,0.00019697,2]
[314643556,1708497039385,-500.07480666,0.00019697,2]
[314643557,1708497039395,-500.0,0.00019697,2]
[314643558,1708497039404,-500.0,0.00019697,2]
[314643559,1708497039414,-500.0,0.00019697,2]
[314643560,1708497039423,-500.05957304,0.00019697,2]
[314643561,1708497039432,-4174.43,0.00019697,2]
[314643562,1708497039442,-500.0,0.00019697,2]
[314643563,1708497039451,-500.0,0.00019697,2]
[314643564,1708497039460,-7563.69,0.00019697,2]
[314643565,1708497039470,-500.0,0.00019697,2]
[314643566,1708497039479,-500.05002225,0.00019697,2]
[314643567,1708497039489,-695.54,0.00019697,2]
[314643568,1708497039498,-500.0,0.00019697,2]
[314643569,1708497039507,-500.0,0.00019697,2]
[314643570,1708497039520,-500.13299627,0.00019697,2]
[314643571,1708497039529,-629.02,0.00019697,2]
[314643572,1708497039539,-500.0,0.00019697,2]
[314643573,1708497039548,-500.0,0.00019697,2]
[314643574,1708497039559,-574.08020889,0.00019697,2]
[314643575,1708497039568,-840.89,0.00019697,2]
[314643576,1708497039578,-500.0,0.00019697,2]
[314643577,1708497039587,-500.0,0.00019697,2]
[314643578,1708497039600,-646.81,0.00019697,2]
[314643579,1708497039611,-500.0,0.00019697,2]
[314643580,1708497039620,-500.0,0.00019697,2]
[314643581,1708497039629,-500.0,0.00019697,2]
[314643582,1708497039638,-5132.3,0.00019697,2]
[314643583,1708497039648,-500.0,0.00019697,2]
[314643584,1708497039658,-500.0,0.00019697,2]
[314643585,1708497039667,-500.45593904,0.00019697,2]
[314643586,1708497039677,-500.0,0.00019697,2]
[314643587,1708497039686,-404.94508815,0.00019697,2]
[314643588,1708497039696,-773.9,0.00019697,2]
[314643589,1708497039705,-500.0,0.00019697,2]
[314643590,1708497039715,-172.16605408,0.00019697,2]
[314643592,1708497039724,-289.88358592,0.00019697,2]
[314643594,1708497039733,-264937.02523993,0.00019698,2]
[314643595,1708497039743,-620.19576809,0.00019703,2]
[314643596,1708497039753,-1501.69,0.00019795,2]
[314643597,1708497039763,-582.03,0.00019795,2]
[314643598,1708497039773,-500.0,0.00019795,2]
[314643599,1708497039782,-500.0,0.00019795,2]
[314643600,1708497039791,-500.0,0.00019795,2]
[314643601,1708497039801,-500.0,0.00019795,2]
[314643602,1708497039810,-205.30958413,0.00019795,2]
[314643603,1708497039819,-500.0,0.00019795,2]
[314643604,1708497039828,-528.64,0.00019795,2]
[314643605,1708497039838,-500.0,0.00019795,2]
[314643606,1708497039848,-500.0,0.00019795,2]
[314643607,1708497039858,-561.77,0.00019795,2]
[314643608,1708497039867,-500.0,0.00019795,2]
[314643609,1708497039877,-1390.95,0.00019795,2]
[314643610,1708497039886,-500.0,0.00019795,2]
[314643611,1708497039896,-211.75774823,0.00019795,2]
[314643612,1708497039905,-500.0,0.00019795,2]
[314643613,1708497039914,-500.0,0.00019795,2]
[314643614,1708497039924,-542.55,0.00019795,2]
[314643615,1708497039933,-753.71,0.00019795,2]
[314643616,1708497039942,-500.0,0.00019795,2]
[314643617,1708497039952,-500.0,0.00019795,2]
[314643618,1708497039961,-5446.76,0.00019795,2]
[314643619,1708497039971,-1000.0,0.00019795,2]
[314643620,1708497039980,-500.0,0.00019795,2]
[314643621,1708497039990,-570.75979419,0.00019795,2]
[314643622,1708497039999,-1132.3,0.00019795,2]
[314643623,1708497040008,-500.0,0.00019795,2]
[314643624,1708497040018,-500.0,0.00019795,2]
[314643625,1708497040027,-500.0,0.00019795,2]
[314643626,1708497040038,-625.4404582,0.00019795,2]
[314643627,1708497040047,-500.0,0.00019795,2]
[314643628,1708497040056,-500.0,0.00019795,2]
[314643629,1708497040066,-500.0,0.00019795,2]
[314643630,1708497040075,-500.0,0.00019795,2]
[314643631,1708497040085,-500.0,0.00019795,2]
[314643633,1708497040095,-500.0,0.00019795,2]
[314643635,1708497040105,-500.0,0.00019795,2]
[314643637,1708497040114,-20162.79,0.00019795,2]
[314643639,1708497040123,-518.14198464,0.00019795,2]
[314643641,1708497040132,-199.49719013,0.00019795,2]
[314643643,1708497040142,-500.0,0.00019795,2]
[314643645,1708497040152,-2009.42,0.00019795,2]
[314643646,1708497040162,-3904.2,0.00019795,2]
[314643647,1708497040172,-500.0,0.00019795,2]
[314643648,1708497040181,-4021.55,0.00019795,2]
[314643649,1708497040190,-500.0,0.00019795,2]
[314643650,1708497040200,-4833.21,0.00019795,2]
[314643651,1708497040209,-2817.75,0.00019795,2]
[314643652,1708497040218,-500.0,0.00019795,2]
[314643653,1708497040228,-563.68,0.00019795,2]
[314643654,1708497040238,-6232.46,0.00019795,2]
[314643655,1708497040247,-500.0,0.00019795,2]
[314643656,1708497040257,-500.0,0.00019795,2]
[314643657,1708497040268,-513.80847959,0.00019795,2]
[314643658,1708497040278,-2009.42,0.00019796,2]
[314643659,1708497040287,-2009.42,0.00019796,2]
[314643660,1708497040296,-500.37578714,0.00019797,2]
[314643661,1708497040307,-525.60985339,0.00019797,2]
[314643662,1708497040316,-500.0,0.00019797,2]
[314643663,1708497040326,-500.0,0.00019797,2]
[314643664,1708497040335,-500.0,0.00019797,2]
[314643665,1708497040344,-500.0,0.00019797,2]
[314643666,1708497040354,-500.0,0.00019797,2]
[314643667,1708497040363,-500.0,0.00019797,2]
[314643668,1708497040373,-527.46681616,0.00019797,2]
[314643669,1708497040382,-500.0,0.00019797,2]
[314643670,1708497040391,-500.0,0.00019797,2]
[314643671,1708497040400,-500.0,0.00019797,2]
[314643672,1708497040410,-500.0,0.00019797,2]
[314643673,1708497040419,-829.16,0.00019797,2]
[314643675,1708497040429,-500.0,0.00019797,2]
[314643676,1708497040438,-500.0,0.00019797,2]
[314643678,1708497040447,-500.0,0.00019797,2]
[314643680,1708497040456,-500.0,0.00019797,2]
[314643681,1708497040465,-500.0,0.00019797,2]
[314643682,1708497040474,-500.0,0.00019797,2]
[314643683,1708497040484,-500.0,0.00019797,2]
[314643684,1708497040493,-500.0,0.00019797,2]
[314643685,1708497040503,-500.0,0.00019797,2]
[314643686,1708497040513,-500.0,0.00019797,2]
[314643687,1708497040522,-861.57,0.00019797,2]
[314643688,1708497040535,-500.0,0.00019797,2]
[314643689,1708497040545,-500.0,0.00019797,2]
[314643690,1708497040554,-1420.29888096,0.00019797,2]
[314643725,1708497045974,-500.0,0.00019694,2]
[314643726,1708497045984,-532.36645246,0.00019695,2]
[314643727,1708497046031,-474.53354754,0.00019695,2]
[314643728,1708497046041,-500.0,0.00019697,2]
[314643729,1708497046050,-1959.59,0.00019787,3]
[314643730,1708497046060,-1220.39111904,0.00019797,2]
[314643731,1708497046069,-500.0,0.00019797,2]
[314643732,1708497046079,-500.0,0.00019797,2]
[314643733,1708497046089,-500.0,0.00019797,2]
[314643734,1708497046098,-486.56466406,0.00019797,2]
[314643735,1708497046108,-592.8347555,0.00019797,2]
[314643736,1708497046118,-500.0,0.00019797,2]
[314643737,1708497046127,-500.0,0.00019797,2]
[314643738,1708497046137,-500.0,0.00019797,2]
[314643739,1708497046147,-500.0,0.00019797,2]
[314643740,1708497046156,-500.0,0.00019797,2]
[314643741,1708497046165,-500.0,0.00019797,2]
[314643742,1708497046174,-500.0,0.00019797,2]
[314643743,1708497046184,-500.0,0.00019797,2]
[314643744,1708497046193,-500.0,0.00019797,2]
[314643745,1708497046203,-500.0,0.00019797,2]
[314643746,1708497046213,-500.0,0.00019797,2]
[314643747,1708497046222,-500.0,0.00019797,2]
[314643748,1708497046231,-500.0,0.00019797,2]
[314643749,1708497046241,-500.0,0.00019797,2]
[314643750,1708497046249,-691.78,0.00019797,2]
[314643751,1708497046258,-451.38232102,0.00019797,2]
[314643752,1708497046269,-500.0,0.00019797,2]
[314643753,1708497046279,-500.0,0.00019797,2]
[314643754,1708497046288,-500.0,0.00019797,2]
[314643755,1708497046297,-504.14747421,0.00019797,2]
[314643756,1708497046306,-1282.25,0.00019797,2]
[314643757,1708497046316,-500.0,0.00019797,2]
[314643758,1708497046325,-621.37,0.00019797,2]
[314643759,1708497046334,-500.0,0.00019797,2]
[314643760,1708497046343,-500.0,0.00019797,2]
[314643761,1708497046352,-500.0,0.00019797,2]
[314643762,1708497046361,-500.0,0.00019797,2]
[314643763,1708497046370,-488.39234827,0.00019797,2]
[314643764,1708497046379,-500.0,0.00019797,2]
[314643765,1708497046389,-500.0,0.00019797,2]
[314643766,1708497046397,-200.0,0.00019797,2]
[314643767,1708497046407,-727.36,0.00019797,2]
[314643768,1708497046416,-500.0,0.00019797,2]
[314643769,1708497046425,-500.0,0.00019797,2]
[314643770,1708497046435,-598.81,0.00019797,2]
[314643771,1708497046444,-500.0,0.00019797,2]
[314643772,1708497046454,-500.0,0.00019797,2]
[314643773,1708497046464,-500.0,0.00019797,2]
[314643774,1708497046473,-500.0,0.00019797,2]
[314643775,1708497046482,-615.71848017,0.00019797,2]
[314643776,1708497046491,-629.21,0.00019797,2]
[314643777,1708497046501,-500.0,0.00019797,2]
[314643778,1708497046510,-642.31,0.00019797,2]
[314643779,1708497046523,-500.0,0.00019797,2]
[314643780,1708497046532,-500.0,0.00019797,2]
[314643781,1708497046542,-500.0,0.00019797,2]
[314643782,1708497046551,-518.9188772,0.00019797,2]
[314643783,1708497046561,-553.07,0.00019797,2]
[314643784,1708497046570,-2009.42,0.00019797,2]
[314643785,1708497046579,-2009.42,0.00019797,2]
[314643786,1708497046589,-2009.42,0.00019797,2]
[314643787,1708497046598,-2009.42,0.00019797,2]
[314643788,1708497046609,-2009.42,0.00019797,2]
[314643789,1708497046618,-2009.42,0.00019797,2]
[314643790,1708497046627,-1933.26612202,0.00019797,2]
[314643794,1708497346336,565.29394169,0.000189,2]
[314643799,1708497478325,500.0,0.000189,2]
[314643806,1708497947482,376.86262779,0.000189,2]
[314643824,1708498167658,188.451815,0.0001856,2]
[314643846,1708498232303,-691.36899456,0.00019463,2]
[314643847,1708498232313,-155.18311608,0.00019463,2]
[314643848,1708498232322,-155.18466976,0.00019464,2]
[314643849,1708498232332,-154.90705577,0.00019471,2]
[314643850,1708498232342,-445.30420836,0.00019496,2]
[314643851,1708498232351,-445.30420833,0.00019565,2]
[314643852,1708498232361,-1360.83,0.00019585,3]
[314643853,1708498232370,-1406.19,0.00019585,3]
[314643854,1708498232379,-1171.82,0.00019585,3]
[314643855,1708498232388,-395.39,0.00019586,3]
[314643856,1708498232398,-197.69,0.00019586,3]
[314643857,1708498232409,-593.12,0.00019586,3]
[314643858,1708498232418,-1118.96,0.00019594,2]
[314643859,1708498232428,-500.0,0.00019595,2]
[314643860,1708498232438,-1135.99,0.00019595,2]
[314643861,1708498232447,-520.38,0.00019595,2]
[314643862,1708498232456,-500.0,0.00019595,2]
[314643863,1708498232646,-500.81725587,0.00019595,2]
[314643864,1708498232656,-500.0,0.00019595,2]
[314643865,1708498232666,-1155.79,0.00019595,2]
[314643866,1708498232677,-4243.47,0.00019595,2]
[314643867,1708498232686,-501.00040851,0.00019595,2]
[314643868,1708498232695,-212.24061307,0.00019595,2]
[314643869,1708498232704,-500.0,0.00019595,2]
[314643870,1708498232714,-507.02,0.00019595,2]
[314643871,1708498232723,-500.0,0.00019595,2]
[314643872,1708498232732,-27331.47,0.00019595,2]
[314643873,1708498232742,-1111.86,0.00019595,2]
[314643874,1708498232752,-23872.37031819,0.00019595,2]
[314643902,1708498238075,-976.52,0.00019586,3]
[314643903,1708498238086,-10222.17968181,0.00019595,2]
[314643904,1708498238096,-500.0,0.00019595,2]
[314643905,1708498238107,-723.47,0.00019595,2]
[314643906,1708498238117,-500.0,0.00019595,2]
[314643907,1708498238127,-1590.98,0.00019595,2]
[314643909,1708498238137,-500.0,0.00019595,2]
[314643911,1708498238147,-500.0,0.00019595,2]
[314643913,1708498238156,-500.0,0.00019595,2]
[314643915,1708498238166,-2190.51,0.00019595,2]
[314643917,1708498238175,-500.0,0.00019595,2]
[314643919,1708498238184,-1179.09,0.00019595,2]
[314643921,1708498238193,-500.0,0.00019595,2]
[314643923,1708498238202,-500.0,0.00019595,2]
[314643925,1708498238212,-500.0,0.00019595,2]
[314643926,1708498238221,-2048.24,0.00019595,2]
[314643929,1708498238230,-500.0,0.00019595,2]
[314643930,1708498238240,-2570.73,0.00019595,2]
[314643931,1708498238249,-500.0,0.00019595,2]
[314643932,1708498238259,-500.0,0.00019595,2]
[314643933,1708498238268,-964.95,0.00019595,2]
[314643934,1708498238277,-500.0,0.00019595,2]
[314643935,1708498238286,-1004.27641323,0.00019596,2]
[314643936,1708498238296,-500.0,0.00019596,2]
[314643937,1708498238305,-548.63,0.00019596,2]
[314643938,1708498238315,-341.61279409,0.00019596,2]
[314643939,1708498238324,-500.0,0.00019596,2]
[314643940,1708498238333,-500.0,0.00019596,2]
[314643941,1708498238343,-500.0,0.00019596,2]
[314643942,1708498238352,-500.0,0.00019596,2]
[314643943,1708498238361,-500.0,0.00019596,2]
[314643944,1708498238371,-500.0,0.00019596,2]
[314643945,1708498238380,-768.8,0.00019596,2]
[314643946,1708498238389,-344.03176169,0.00019596,2]
[314643947,1708498238419,-155.96823831,0.00019596,2]
[314643948,1708498238428,-744.99,0.00019596,2]
[314643949,1708498238437,-342.24176169,0.00019596,2]
[314643950,1708498238449,-157.75823831,0.00019596,2]
[314643951,1708498238458,-500.46440757,0.00019596,2]
[314643952,1708498238466,-500.0,0.00019596,2]
[314643953,1708498238475,-2287.52,0.00019596,2]
[314643954,1708498238485,-500.0,0.00019596,2]
[314643955,1708498238494,-2664.81,0.00019596,2]
[314643956,1708498238503,-500.0,0.00019596,2]
[314643957,1708498238513,-12789.85,0.00019596,2]
[314643958,1708498238522,-2729.97,0.00019596,2]
[314643959,1708498238531,-500.0,0.00019596,2]
[314643960,1708498238540,-19188.24,0.00019596,2]
[314643961,1708498238549,-3057.25,0.00019596,2]
[314643962,1708498238559,-500.0,0.00019596,2]
[314643963,1708498238568,-1769.67441098,0.00019596,2]
[314643964,1708498238579,-1911.16934205,0.00019596,2]
[314643965,1708498238590,-1739.46624697,0.00019596,2]
[314643966,1708498238599,-500.0,0.00019596,2]
[314643967,1708498238608,-500.0,0.00019596,2]
[314643968,1708498238617,-500.0,0.00019596,2]
[314643969,1708498238627,-500.0,0.00019596,2]
[314643970,1708498238636,-500.0,0.00019596,2]
[314643971,1708498238645,-500.0,0.00019596,2]
[314643972,1708498238654,-500.0,0.00019596,2]
[314643973,1708498238663,-500.0,0.00019596,2]
[314643974,1708498238673,-500.0,0.00019596,2]
[314643975,1708498238683,-1781.9392751,0.00019596,2]
[314644036,1708498243236,-1989.8007249,0.00019596,2]
[314644037,1708498243247,-4000.5,0.00019596,2]
[314644038,1708498243257,-154.5552703,0.00019596,2]
[314644039,1708498243269,-345.4447297,0.00019596,2]
[314644040,1708498243278,-500.0,0.00019596,2]
[314644041,1708498243288,-500.0,0.00019596,2]
[314644042,1708498243298,-500.0,0.00019596,2]
[314644043,1708498243307,-500.0,0.00019596,2]
[314644044,1708498243316,-275.58759687,0.00019596,2]
[314644052,1708498247640,-500.0,0.00019594,2]
[314644054,1708498247650,-155.15826143,0.00019595,2]
[314644056,1708498247659,-691.36899456,0.00019595,2]
[314644058,1708498247669,-693.61240313,0.00019596,2]
[314644060,1708498247678,-711.63,0.00019596,2]
[314644062,1708498247689,-500.0,0.00019596,2]
[314644064,1708498247698,-500.0,0.00019596,2]
[314644066,1708498247708,-500.0,0.00019596,2]
[314644068,1708498247718,-621.48,0.00019596,2]
[314644070,1708498247728,-500.0,0.00019596,2]
[314644072,1708498247738,-500.0,0.00019596,2]
[314644074,1708498247747,-432.97786707,0.00019596,2]
[314644076,1708498247756,-1439.12,0.00019596,2]
[314644077,1708498247766,-178.48792406,0.00019596,2]
[314644080,1708498247776,-805.85,0.00019596,2]
[314644082,1708498247788,-500.0,0.00019596,2]
[314644084,1708498247798,-7248.54,0.00019596,2]
[314644085,1708498247808,-4918.46,0.00019596,2]
[314644088,1708498247819,-557.78,0.00019596,2]
[314644090,1708498247830,-500.0,0.00019596,2]
[314644091,1708498247840,-500.0,0.00019596,2]
[314644094,1708498247850,-500.0,0.00019596,2]
[314644096,1708498247859,-500.0,0.00019596,2]
[314644115,1708498248047,-2553.77,0.00019596,2]
[314644118,1708498248072,-500.0,0.00019596,2]
[314644120,1708498248082,-51236.82731239,0.00019597,2]
[314644122,1708498248091,-445.30420833,0.00019633,2]
[314644124,1708498248101,-500.0,0.00019693,2]
[314644127,1708498248111,-500.0,0.00019693,2]
[314644128,1708498248120,-500.0,0.00019693,2]
[314644130,1708498248130,-500.0,0.00019693,2]
[314644132,1708498248139,-2481.66,0.00019693,2]
[314644135,1708498248149,-644.43,0.00019693,2]
[314644137,1708498248158,-500.0,0.00019693,2]
[314644139,1708498248167,-500.0,0.00019693,2]
[314644140,1708498248177,-500.0,0.00019693,2]
[314644143,1708498248189,-500.0,0.00019693,2]
[314644144,1708498248198,-1584.23,0.00019693,2]
[314644147,1708498248207,-673.58,0.00019693,2]
[314644149,1708498248217,-500.0,0.00019693,2]
[314644151,1708498248226,-500.0,0.00019693,2]
[314644153,1708498248235,-500.0,0.00019693,2]
[314644155,1708498248244,-602.81,0.00019693,2]
[314644156,1708498248253,-500.0,0.00019693,2]
[314644159,1708498248263,-500.0,0.00019693,2]
[314644160,1708498248272,-500.0,0.00019693,2]
[314644162,1708498248282,-741.65,0.00019693,2]
[314644164,1708498248291,-500.0,0.00019693,2]
[314644166,1708498248301,-500.0,0.00019693,2]